bitfinex-derivatives/quotes_BTCF0:USTF0_20240923
["timestamp","ask_amount","ask_price","bid_price","bid_amount"]
[1727099129335,0.3608,63351.0,63350.0,0.078937]
[1727099130827,0.3608,63357.0,63350.0,0.078937]
[1727099131031,0.3608,63357.0,63350.0,0.078938]
[1727099131032,0.003,63351.0,63350.0,0.078938]
[1727099131831,0.3638,63351.0,63346.0,0.0008]
[1727099132025,0.3638,63351.0,63345.0,0.005]
[1727099132026,0.078943,63346.0,63345.0,0.005]
[1727099132225,0.078944,63345.0,63331.0,1.50236852]
[1727099132437,0.3608,63337.0,63331.0,1.50236852]
[1727099133044,0.3608,63337.0,63336.0,0.078955]
[1727099134247,0.3608,63337.0,63331.0,1.51124852]
[1727099134431,0.3608,63337.0,63336.0,0.078955]
[1727099134628,0.3608,63343.0,63336.0,0.078955]
[1727099134629,0.3608,63343.0,63342.0,0.078948]
[1727099136438,0.3608,63343.0,63336.0,0.002]
[1727099136439,0.3638,63343.0,63336.0,0.002]
[1727099136634,0.3638,63343.0,63335.0,0.078956]
[1727099136635,0.439755,63337.0,63335.0,0.078956]
[1727099136833,0.439755,63337.0,63331.0,0.00236852]
[1727099136834,0.19,63336.0,63331.0,0.00236852]
[1727099137042,0.07896,63332.0,63331.0,0.00236852]
[1727099137348,0.26896,63332.0,63331.0,0.00236852]
[1727099137643,0.26896,63332.0,63318.0,0.078977]
[1727099137644,0.078962,63331.0,63318.0,0.078977]
[1727099137844,0.078962,63331.0,63309.0,0.0023688]
[1727099137845,0.3568,63319.0,63313.0,0.078984]
[1727099138142,0.3568,63319.0,63309.0,0.0023688]
[1727099139143,0.3568,63319.0,63318.0,0.268978]
[1727099139631,0.3608,63322.0,63318.0,0.268978]
[1727099139939,0.36316978,63332.0,63328.0,0.078965]
[1727099140145,0.001,63319.0,63318.0,0.078978]
[1727099140346,0.36316978,63332.0,63331.0,0.078962]
[1727099140550,0.3608,63332.0,63331.0,0.078962]
[1727099142343,0.3608,63332.0,63331.0,0.157924]
[1727099142538,0.3608,63340.0,63339.0,0.078952]
[1727099143442,0.3608,63340.0,63331.0,0.007]
[1727099143644,0.43975,63340.0,63336.0,0.078955]
[1727099143838,0.43975,63340.0,63331.0,0.007]
[1727099143839,0.3608,63340.0,63331.0,0.004]
[1727099144041,0.3668,63340.0,63339.0,0.001]
[1727099144245,0.3668,63340.0,63323.0,0.157173]
[1727099144246,1.80124,63340.0,63322.0,0.078972]
[1727099144546,1.80124,63340.0,63319.0,0.078202]
[1727099144547,0.3608,63324.0,63319.0,0.0008]
[1727099144841,0.3608,63324.0,63321.0,0.078973]
[1727099145049,0.3608,63324.0,63311.0,0.19]
[1727099145436,0.3608,63324.0,63309.0,0.0805708]
[1727099145437,0.3608,63318.0,63314.0,0.078982]
[1727099145643,0.3608,63312.0,63311.0,0.078987]
[1727099146140,0.7216,63312.0,63311.0,0.078987]
[1727099146341,0.800585,63312.0,63311.0,0.006]
[1727099146943,0.072988,63310.0,63309.0,0.0023688]
[1727099147142,0.251988,63310.0,63309.0,0.0023688]
[1727099147349,0.078992,63307.0,63301.0,0.00699294]
[1727099147551,0.3568,63302.0,63301.0,0.00699294]
[1727099147943,0.3568,63302.0,63294.0,0.01042242]
[1727099148245,0.5508,63295.0,63294.0,0.01042242]
[1727099148443,0.5508,63295.0,63292.0,0.0061335]
[1727099148444,0.3608,63295.0,63292.0,0.0061335]
[1727099148647,0.3608,63295.0,63279.0,0.09142833]
[1727099148648,0.07901,63292.0,63275.0,0.00816332]
[1727099148853,0.07903,63276.0,63275.0,0.0008]
[1727099149051,0.07903,63276.0,63268.0,0.0128684]
[1727099149052,0.079038,63270.0,63268.0,0.0128684]
[1727099149242,0.07904,63268.0,63265.0,0.02118092]
[1727099149551,0.43284,63268.0,63265.0,0.02118092]
[1727099150153,0.42684,63268.0,63265.0,0.02118092]
[1727099150348,0.3608,63268.0,63265.0,0.02118092]
[1727099150547,0.3598,63268.0,63265.0,0.02118092]
[1727099150756,0.3608,63268.0,63265.0,0.02718092]
[1727099151145,0.3618,63268.0,63265.0,0.02718092]
[1727099151652,0.3618,63268.0,63266.0,0.079042]
[1727099151853,0.002,63268.0,63266.0,0.079042]
[1727099152156,0.3628,63268.0,63265.0,0.02718092]
[1727099152952,0.079042,63267.0,63265.0,0.02118092]
[1727099153460,0.3628,63268.0,63265.0,0.02118092]
[1727099154452,0.3628,63268.0,63266.0,0.079042]
[1727099154453,0.001,63268.0,63266.0,0.079042]
[1727099154957,0.3608,63272.0,63265.0,0.02118092]
[1727099155148,0.3608,63266.0,63265.0,0.10022492]
[1727099156051,0.30543973,63266.0,63265.0,0.10022492]
[1727099156457,0.30643973,63266.0,63265.0,0.10022492]
[1727099157053,0.3645,63282.0,63266.0,0.4742]
[1727099157253,0.3645,63282.0,63272.0,0.29]
[1727099157254,0.3608,63282.0,63272.0,0.29]
[1727099157650,0.3608,63282.0,63273.0,1.5]
[1727099157856,0.3608,63285.0,63273.0,1.5]
[1727099158059,0.29,63276.0,63273.0,1.5]
[1727099158256,0.3608,63279.0,63272.0,0.079035]
[1727099158462,0.3608,63279.0,63265.0,0.02118092]
[1727099158463,0.3608,63279.0,63267.0,0.29]
[1727099158771,0.3608,63279.0,63265.0,0.02118092]
[1727099158772,0.3608,63279.0,63278.0,0.079028]
[1727099159263,0.07902,63284.0,63278.0,0.079028]
[1727099159645,0.07902,63284.0,63278.0,0.079027]
[1727099159646,0.079021,63284.0,63278.0,0.079027]
[1727099159846,0.29,63279.0,63274.0,0.0008]
[1727099160155,0.29,63279.0,63265.0,0.02118092]
[1727099160364,0.3608,63267.0,63266.0,0.079043]
[1727099161358,0.079043,63266.0,63265.0,0.02118092]
[1727099161746,0.079043,63266.0,63257.0,0.01060106]
[1727099161747,0.3,63266.0,63257.0,0.01060106]
[1727099162060,0.079055,63257.0,63255.0,0.02092991]
[1727099162245,0.3608,63257.0,63256.0,0.079055]
[1727099163458,0.32224913,63257.0,63256.0,0.079055]
[1727099165058,0.3608,63269.0,63256.0,1.07424]
[1727099165260,0.3608,63269.0,63256.0,0.079055]
[1727099165261,0.001,63257.0,63256.0,0.079055]
[1727099165556,0.3608,63269.0,63256.0,1.07424]
[1727099165760,0.3608,63269.0,63255.0,0.02092991]
[1727099166463,0.6608,63262.0,63256.0,0.079054]
[1727099166662,0.3,63257.0,63255.0,0.02092991]
[1727099166865,0.3608,63258.0,63255.0,0.02092991]
[1727099167165,0.079043,63266.0,63255.0,0.02092991]
[1727099167362,0.36317209,63270.0,63255.0,0.02092991]
[1727099167552,0.079041,63268.0,63255.0,0.02092991]
[1727099167751,0.36317209,63270.0,63255.0,0.09998491]
[1727099167948,0.36317209,63270.0,63268.0,0.07904]
[1727099168156,0.002,63269.0,63256.0,0.079055]
[1727099168352,0.002,63269.0,63255.0,0.02092991]
[1727099168561,0.3608,63261.0,63258.0,0.079052]
[1727099168763,0.3608,63261.0,63260.0,0.07905]
[1727099169157,0.001,63268.0,63267.0,0.079042]
[1727099169468,0.379041,63268.0,63267.0,1.5]
[1727099170165,0.379041,63268.0,63255.0,0.02192991]
[1727099170166,0.15811,63256.0,63255.0,0.02192991]
[1727099170357,0.51891,63256.0,63255.0,0.02192991]
[1727099171166,0.439855,63256.0,63255.0,0.02192991]
[1727099171368,0.439855,63256.0,63255.0,0.02092991]
[1727099171956,0.439855,63256.0,63254.0,0.01980753]
[1727099171957,0.079056,63255.0,63254.0,0.01980753]
[1727099173360,0.55376,63256.0,63244.0,0.062261]
[1727099173668,0.5508,63247.0,63238.0,0.06268168]
[1727099173966,0.5508,63247.0,63229.0,0.08018068]
[1727099173967,0.3608,63239.0,63229.0,0.08018068]
[1727099174269,0.3608,63239.0,63229.0,0.08106668]
[1727099174270,0.3054066,63230.0,63229.0,0.08106668]
[1727099174462,0.4954066,63230.0,63229.0,0.18465071]
[1727099174661,0.4954066,63230.0,63223.0,0.00422832]
[1727099174662,0.4954066,63230.0,63223.0,0.08243032]
[1727099175054,0.4954066,63230.0,63225.0,0.079094]
[1727099175260,0.9352946,63230.0,63223.0,0.00422832]
[1727099175459,0.9352946,63230.0,63224.0,0.079095]
[1727099175657,0.9352946,63230.0,63225.0,0.18301391]
[1727099175658,0.80872114,63230.0,63225.0,0.18301391]
[1727099175873,0.80872114,63230.0,63228.0,0.07909]
[1727099176063,0.80972114,63230.0,63228.0,0.07909]
[1727099176466,0.81072114,63230.0,63228.0,0.07909]
[1727099176660,0.81072114,63230.0,63229.0,0.079089]
[1727099176862,0.62072114,63230.0,63229.0,0.079089]
[1727099177057,0.81072114,63230.0,63229.0,0.079089]
[1727099177460,0.81072114,63230.0,63229.0,0.18300349]
[1727099177669,0.81072114,63230.0,63227.0,0.07854307]
[1727099177967,0.81072114,63230.0,63226.0,0.07854307]
[1727099178167,0.269092,63227.0,63226.0,0.07854307]
[1727099178568,0.269092,63227.0,63226.0,0.18318178]
[1727099178865,0.62260115,63230.0,63226.0,0.18318092]
[1727099179070,1.22072114,63230.0,63228.0,0.07854854]
[1727099179366,0.079102,63219.0,63218.0,0.00092]
[1727099179562,0.079102,63219.0,63217.0,0.00244399]
[1727099179563,0.629902,63219.0,63217.0,0.00244399]
[1727099179962,0.629902,63219.0,63217.0,0.08154799]
[1727099179963,0.079103,63218.0,63217.0,0.08154799]
[1727099180567,0.079103,63218.0,63217.0,0.00244399]
[1727099181166,0.080103,63218.0,63217.0,0.00244399]
[1727099181366,0.080103,63218.0,63217.0,0.08154799]
[1727099181574,0.080103,63218.0,63206.0,0.00015746]
[1727099181575,0.3608,63212.0,63173.0,0.61287686]
[1727099181775,0.5508,63174.0,63154.0,0.3608]
[1727099181992,0.3134,63164.0,63154.0,0.3608]
[1727099182367,0.19,63161.0,63160.0,0.079175]
[1727099182572,0.3134,63164.0,63160.0,0.07898]
[1727099182874,0.19,63161.0,63160.0,0.07898]
[1727099183170,0.19,63161.0,63134.0,0.3608]
[1727099183171,0.19,63161.0,63146.0,0.0008]
[1727099183373,0.3608,63147.0,63142.0,0.3608]
[1727099183669,0.19,63145.0,63143.0,0.07898]
[1727099183870,0.19,63152.0,63143.0,0.07898]
[1727099184071,0.3608,63158.0,63149.0,0.07898]
[1727099184270,0.3608,63150.0,63129.0,0.3608]
[1727099184470,0.00780018,63161.0,63121.0,0.3608]
[1727099184471,0.3608,63140.0,63130.0,0.07898]
[1727099184673,0.001,63147.0,63130.0,0.07898]
[1727099184875,0.001,63147.0,63143.0,0.07898]
[1727099185871,0.001,63147.0,63144.0,0.07898]
[1727099186068,0.601,63147.0,63144.0,0.07898]
[1727099186268,0.601,63147.0,63126.0,0.3608]
[1727099186476,0.601,63147.0,63120.0,0.23867377]
[1727099186477,0.3608,63127.0,63120.0,0.23867377]
[1727099186667,0.3608,63127.0,63116.0,0.3608]
[1727099186972,0.3608,63131.0,63122.0,0.3608]
[1727099187177,0.3,63132.0,63123.0,0.3608]
[1727099187364,0.3,63128.0,63118.0,0.079228]
[1727099187678,0.3,63128.0,63118.0,0.03065]
[1727099187877,0.3,63134.0,63123.0,0.440021]
[1727099188173,0.3,63139.0,63131.0,0.3608]
[1727099188373,0.00237774,63140.0,63131.0,0.3608]
[1727099188374,0.00237774,63140.0,63132.0,0.079209]
[1727099188562,0.00237774,63140.0,63135.0,0.00142167]
[1727099188968,0.00237774,63140.0,63138.0,0.440002]
[1727099189268,0.3,63140.0,63138.0,0.3608]
[1727099189472,0.3608,63151.0,63138.0,0.39145]
[1727099189776,0.3,63146.0,63138.0,0.39145]
[1727099190078,0.3608,63151.0,63145.0,0.3608]
[1727099190273,0.3608,63151.0,63145.0,0.39145]
[1727099190774,0.3608,63154.0,63145.0,0.3608]
[1727099190965,0.3608,63146.0,63138.0,0.3608]
[1727099191171,0.3,63142.0,63138.0,0.3608]
[1727099191476,0.3,63142.0,63131.0,0.3608]
[1727099191477,0.3608,63139.0,63132.0,0.07898]
[1727099191685,0.3608,63139.0,63133.0,0.07898]
[1727099191686,0.079204,63138.0,63133.0,0.07898]
[1727099191868,0.3,63135.0,63133.0,0.07898]
[1727099192070,0.379207,63135.0,63133.0,0.07898]
[1727099192376,0.47516,63134.0,63133.0,0.05656612]
[1727099192881,1.07416,63134.0,63133.0,0.05656612]
[1727099193466,0.47416,63134.0,63133.0,0.05656612]
[1727099193672,1.07416,63134.0,63133.0,0.05656612]
[1727099193873,1.07616,63134.0,63133.0,0.05856612]
[1727099194577,1.07616,63134.0,63113.0,0.3608]
[1727099194578,0.079235,63113.0,63107.0,0.07898]
[1727099194778,0.079237,63111.0,63107.0,0.07898]
[1727099194974,0.3608,63112.0,63107.0,0.07898]
[1727099195171,0.079237,63111.0,63101.0,0.07898]
[1727099195477,0.079237,63111.0,63100.0,0.07925]
[1727099195478,0.031838,63110.0,63108.0,0.07898]
[1727099195789,0.66292001,63112.0,63108.0,0.07898]
[1727099195790,0.647438,63112.0,63108.0,0.07898]
[1727099195973,0.031838,63110.0,63108.0,0.07898]
[1727099196166,0.47536,63111.0,63108.0,0.07898]
[1727099196167,0.00216001,63111.0,63108.0,0.07898]
[1727099196370,0.001,63113.0,63111.0,0.079237]
[1727099196772,0.001,63112.0,63111.0,0.440037]
[1727099196971,0.001,63113.0,63111.0,0.109887]
[1727099197179,0.3608,63121.0,63112.0,0.3]
[1727099197378,0.0023777,63124.0,63122.0,0.079222]
[1727099197575,0.0023777,63124.0,63112.0,0.33065]
[1727099197576,0.0023777,63124.0,63112.0,0.03065]
[1727099197769,0.0023777,63124.0,63122.0,0.079223]
[1727099197978,0.0023777,63124.0,63123.0,0.3608]
[1727099198284,0.079196,63144.0,63133.0,0.079209]
[1727099198473,0.3608,63147.0,63141.0,0.3608]
[1727099198677,0.3608,63147.0,63140.0,0.079199]
[1727099198678,0.439992,63147.0,63140.0,0.079199]
[1727099198878,0.3,63155.0,63140.0,0.079199]
[1727099198879,0.00148,63148.0,63140.0,1.53065]
[1727099199069,0.00148,63148.0,63140.0,0.03065]
[1727099199269,0.00148,63148.0,63146.0,0.079193]
[1727099199688,0.00237633,63158.0,63146.0,0.03065]
[1727099199870,0.00237633,63158.0,63156.0,0.07918]
[1727099200271,0.00237633,63158.0,63157.0,0.00159354]
[1727099200591,0.3608,63172.0,63157.0,1.97659354]
[1727099200778,0.3608,63181.0,63167.0,0.079166]
[1727099201089,0.00237555,63185.0,63176.0,0.079155]
[1727099201270,0.00237555,63185.0,63168.0,0.3608]
[1727099201271,0.00237555,63185.0,63180.0,0.00159354]
[1727099201583,0.079146,63184.0,63180.0,0.00159354]
[1727099202082,0.6608,63182.0,63180.0,0.00159354]
[1727099202292,0.6608,63182.0,63168.0,0.3608]
[1727099202293,0.07756246,63176.0,63168.0,0.3608]
[1727099202588,0.37756246,63176.0,63168.0,0.3608]
[1727099202772,0.079157,63175.0,63168.0,0.3608]
[1727099203084,0.3,63176.0,63162.0,0.439972]
[1727099203292,0.3608,63169.0,63162.0,0.470622]
[1727099204378,0.3608,63163.0,63157.0,1.5008]
[1727099204583,0.079175,63161.0,63157.0,1.5]
[1727099204790,0.3618,63169.0,63157.0,1.5]
[1727099205084,0.440964,63169.0,63159.0,0.3608]
[1727099205285,0.001,63169.0,63165.0,0.3608]
[1727099205473,0.001,63176.0,63165.0,0.3608]
[1727099205474,0.001,63176.0,63165.0,0.39145]
[1727099205977,0.3608,63177.0,63173.0,0.079159]
[1727099206376,0.3608,63177.0,63174.0,0.079157]
[1727099206675,0.3608,63177.0,63165.0,0.3608]
[1727099206676,0.47488,63176.0,63165.0,0.3608]
[1727099206877,0.3,63166.0,63157.0,0.00092]
[1727099207079,0.079172,63163.0,63157.0,0.109829]
[1727099207677,0.3608,63168.0,63162.0,0.079173]
[1727099207877,0.079157,63175.0,63159.0,0.3608]
[1727099208078,0.3,63166.0,63159.0,0.03065]
[1727099208275,0.079173,63162.0,63159.0,0.03065]
[1727099208687,0.079174,63161.0,63159.0,0.03065]
[1727099208890,0.3608,63163.0,63155.0,0.079181]
[1727099209077,0.3608,63163.0,63155.0,0.109831]
[1727099209278,0.001,63163.0,63155.0,0.03065]
[1727099209487,0.001,63163.0,63159.0,0.079177]
[1727099209680,0.079173,63162.0,63159.0,0.03065]
[1727099209886,0.079176,63160.0,63155.0,0.079181]
[1727099210287,0.079176,63160.0,63156.0,0.07918]
[1727099210480,0.002,63163.0,63155.0,0.03065]
[1727099210679,0.002,63163.0,63162.0,0.079173]
[1727099210885,0.079155,63176.0,63162.0,0.03065]
[1727099211087,0.079155,63176.0,63168.0,0.3608]
[1727099211385,0.439949,63181.0,63168.0,0.3608]
[1727099211579,0.07915,63180.0,63174.0,0.079158]
[1727099211781,0.079153,63178.0,63169.0,0.079164]
[1727099212002,0.3,63174.0,63168.0,0.39145]
[1727099212212,0.3,63174.0,63162.0,0.3608]
[1727099212382,0.079161,63172.0,63166.0,0.079167]
[1727099212587,0.3608,63176.0,63166.0,0.109818]
[1727099212982,0.3608,63176.0,63161.0,0.3608]
[1727099212983,0.079167,63167.0,63161.0,0.3608]
[1727099213187,0.079168,63166.0,63163.0,0.079172]
[1727099213587,0.379164,63169.0,63161.0,0.3608]
[1727099213792,0.3608,63168.0,63158.0,0.079178]
[1727099214094,0.3608,63168.0,63159.0,0.079177]
[1727099214292,0.001,63167.0,63159.0,0.079177]
[1727099215000,0.079175,63161.0,63159.0,0.079177]
[1727099215301,0.079171,63164.0,63161.0,0.079174]
[1727099215498,0.079196,63145.0,63144.0,0.079195]
[1727099215885,0.3608,63149.0,63144.0,0.03065]
[1727099216304,0.079206,63136.0,63135.0,0.3608]
[1727099216486,0.079207,63135.0,63134.0,0.063]
[1727099216690,0.3,63144.0,63135.0,0.079207]
[1727099216888,0.3608,63149.0,63134.0,0.09365]
[1727099217092,0.3618,63149.0,63134.0,0.09365]
[1727099217295,0.079198,63142.0,63138.0,0.079203]
[1727099217588,0.001,63145.0,63138.0,0.03065]
[1727099217784,0.001,63145.0,63138.0,0.39145]
[1727099217995,0.3,63139.0,63129.0,0.43978]
[1727099218202,0.3,63139.0,63129.0,0.47043]
[1727099218389,0.079206,63136.0,63129.0,0.47043]
[1727099218594,0.079211,63132.0,63129.0,0.549643]
[1727099218796,0.079213,63130.0,63129.0,0.47043]
[1727099218993,0.3,63132.0,63129.0,0.07898]
[1727099219195,0.079113,63130.0,63129.0,0.07898]
[1727099219522,0.158326,63130.0,63129.0,0.07898]
[1727099219709,0.633526,63130.0,63129.0,0.07898]
[1727099219898,0.554313,63130.0,63129.0,0.07898]
[1727099220208,0.001,63132.0,63131.0,0.079212]
[1727099220393,0.0792,63141.0,63139.0,0.079201]
[1727099220698,0.079211,63132.0,63131.0,0.3608]
[1727099221006,0.079211,63132.0,63125.0,0.07898]
[1727099221007,0.079217,63127.0,63125.0,0.07898]
[1727099221300,0.6608,63132.0,63127.0,0.07898]
[1727099221301,0.079216,63128.0,63127.0,0.07898]
[1727099221909,0.079204,63138.0,63127.0,0.47043]
[1727099222092,0.001,63130.0,63129.0,0.158194]
[1727099222492,0.001,63130.0,63129.0,0.188844]
[1727099222802,0.07921,63133.0,63129.0,0.188844]
[1727099222998,0.079206,63136.0,63129.0,0.10963]
[1727099223300,0.6608,63140.0,63129.0,0.10963]
[1727099223599,0.6608,63140.0,63129.0,0.07898]
[1727099223600,0.3,63130.0,63129.0,0.07898]
[1727099223805,0.379213,63130.0,63129.0,0.07898]
[1727099224006,0.379213,63130.0,63129.0,0.07998]
[1727099224302,0.379213,63130.0,63107.0,0.10984138]
[1727099224303,0.079221,63124.0,63123.0,0.0471035]
[1727099224496,0.3608,63124.0,63122.0,0.07898]
[1727099224694,0.3608,63124.0,63123.0,0.158202]
[1727099224896,0.76375228,63124.0,63123.0,0.07898]
[1727099225090,0.68453128,63124.0,63123.0,0.07898]
[1727099225701,0.68453128,63124.0,63115.0,0.079231]
[1727099225702,0.68353128,63124.0,63118.0,0.0471035]
[1727099225903,0.079229,63117.0,63116.0,0.0471035]
[1727099226209,0.60431028,63124.0,63116.0,0.08065302]
[1727099226503,0.60531028,63124.0,63117.0,0.04713365]
[1727099226801,0.30531028,63124.0,63117.0,0.04713365]
[1727099227108,0.30531028,63124.0,63123.0,0.079222]
[1727099227408,0.001,63124.0,63123.0,0.08064602]
[1727099227605,0.00237727,63137.0,63123.0,0.08064602]
[1727099227606,0.00237727,63137.0,63123.0,0.21369475]
[1727099227811,0.0037,63147.0,63135.0,0.3]
[1727099228104,0.083483,63154.0,63143.0,0.04712288]
[1727099228105,0.3608,63150.0,63143.0,0.04712288]
[1727099228305,0.3608,63150.0,63146.0,0.00142402]
[1727099228502,0.079192,63147.0,63146.0,0.00142402]
[1727099228902,0.00237669,63158.0,63149.0,0.079189]
[1727099228903,0.3608,63150.0,63149.0,0.079189]
[1727099229108,0.079192,63147.0,63146.0,0.00142402]
[1727099229308,0.379192,63147.0,63146.0,0.00142402]
[1727099229707,0.3608,63150.0,63146.0,0.02969675]
[1727099229901,0.001,63147.0,63146.0,0.10888975]
[1727099230414,0.001,63147.0,63146.0,0.46968975]
[1727099230917,0.001,63150.0,63146.0,0.39049675]
[1727099231206,0.00237669,63158.0,63157.0,0.079179]
[1727099231509,0.08155469,63158.0,63157.0,0.00142402]
[1727099232007,1.43817669,63158.0,63143.0,1.5]
[1727099232196,1.43817669,63158.0,63128.0,0.36317612]
[1727099232197,0.3,63147.0,63128.0,0.36317612]
[1727099232398,0.3608,63149.0,63128.0,0.36317612]
[1727099232399,0.079214,63129.0,63128.0,0.00237612]
[1727099232611,0.079214,63129.0,63128.0,0.03064885]
[1727099232612,0.078214,63129.0,63128.0,0.03064885]
[1727099232808,0.44149,63133.0,63128.0,0.03064885]
[1727099233001,0.44001,63133.0,63128.0,0.03064885]
[1727099233308,0.3608,63142.0,63128.0,0.03064885]
[1727099233507,0.3608,63142.0,63129.0,0.079214]
[1727099233804,0.079207,63135.0,63129.0,0.10748673]
[1727099234007,0.001,63133.0,63129.0,0.02827273]
[1727099234202,0.001,63133.0,63132.0,0.079211]
[1727099234803,0.001,63133.0,63128.0,0.00237612]
[1727099235117,0.440014,63129.0,63128.0,0.03064885]
[1727099235304,0.079226,63120.0,63110.0,0.42368726]
[1727099235508,0.379236,63112.0,63110.0,0.38907273]
[1727099235714,0.3,63112.0,63110.0,0.38907273]
[1727099236008,0.3608,63117.0,63110.0,0.02827273]
[1727099236199,0.3608,63117.0,63110.0,0.38907273]
[1727099236397,0.3608,63117.0,63110.0,0.02827273]
[1727099236710,0.001,63120.0,63119.0,0.158207]
[1727099237209,0.0037,63136.0,63119.0,0.46805273]
[1727099237407,0.079216,63128.0,63123.0,0.07898]
[1727099237614,0.079218,63126.0,63123.0,0.07898]
[1727099237910,0.079221,63124.0,63123.0,0.10725273]
[1727099238106,0.079221,63124.0,63123.0,0.07898]
[1727099238303,0.079224,63121.0,63120.0,0.07898]
[1727099238500,0.379218,63126.0,63120.0,0.07898]
[1727099238703,0.3608,63131.0,63123.0,0.07898]
[1727099238907,0.079216,63128.0,63126.0,0.079218]
[1727099239212,0.079216,63128.0,63123.0,0.07898]
[1727099239213,0.3608,63131.0,63123.0,0.12610288]
[1727099239413,0.3608,63131.0,63123.0,0.07898]
[1727099239414,0.440021,63124.0,63123.0,0.07898]
[1727099239805,0.3608,63124.0,63123.0,0.07898]
[1727099240005,1.515261,63124.0,63123.0,0.07898]
[1727099240215,1.593482,63124.0,63123.0,0.07898]
[1727099240810,1.593482,63124.0,63116.0,0.07898]
[1727099240811,0.079229,63117.0,63116.0,0.07898]
[1727099241715,0.440029,63117.0,63116.0,0.07898]
[1727099241910,0.002,63128.0,63123.0,0.07898]
[1727099242112,0.09358391,63156.0,63123.0,0.07898]
[1727099242113,0.0037,63142.0,63126.0,0.3608]
[1727099242316,0.3,63145.0,63132.0,0.3608]
[1727099242520,0.079201,63140.0,63138.0,0.079203]
[1727099242701,0.079202,63139.0,63138.0,0.04712288]
[1727099242905,0.079202,63139.0,63127.0,0.0684]
[1727099242906,0.83596,63139.0,63135.0,0.04724466]
[1727099243104,0.3608,63139.0,63127.0,0.40804466]
[1727099243322,0.3,63131.0,63127.0,0.3608]
[1727099243503,0.3,63131.0,63116.0,0.14694663]
[1727099243504,0.158432,63128.0,63126.0,0.04724466]
[1727099243708,0.158432,63128.0,63123.0,0.14186726]
[1727099243709,0.079217,63127.0,63123.0,0.07898]
[1727099244007,0.079228,63118.0,63115.0,0.04724466]
[1727099244209,0.079237,63111.0,63110.0,0.06288726]
[1727099244521,0.6608,63116.0,63109.0,0.07854663]
[1727099244522,0.079239,63110.0,63109.0,0.07854663]
[1727099244816,0.079233,63114.0,63111.0,0.079237]
[1727099245114,0.740037,63112.0,63102.0,0.04731438]
[1727099245319,0.740037,63112.0,63099.0,0.06308585]
[1727099245320,0.079247,63103.0,63099.0,0.079252]
[1727099245623,0.3608,63106.0,63101.0,0.079249]
[1727099245918,0.740037,63112.0,63105.0,0.079244]
[1727099245919,0.079241,63108.0,63105.0,0.079244]
[1727099246106,0.079241,63108.0,63105.0,0.10751673]
[1727099246306,0.079246,63104.0,63103.0,0.00184804]
[1727099246717,0.6608,63112.0,63103.0,0.00184804]
[1727099246910,0.001,63114.0,63107.0,0.00184804]
[1727099247106,0.3608,63127.0,63107.0,0.00184804]
[1727099247107,0.0037,63125.0,63112.0,0.40811438]
[1727099247415,0.087207,63135.0,63112.0,0.40811438]
[1727099247416,0.3,63136.0,63124.0,0.3608]
[1727099247612,0.443705,63137.0,63129.0,0.079213]
[1727099247613,0.079208,63134.0,63129.0,0.079213]
[1727099247809,0.6608,63137.0,63129.0,0.079213]
[1727099248024,0.6608,63137.0,63133.0,0.00184804]
[1727099248321,0.6608,63137.0,63124.0,0.3608]
[1727099248322,0.0766121,63134.0,63124.0,0.3608]
[1727099248619,0.0766121,63134.0,63130.0,0.079213]
[1727099249007,0.079211,63132.0,63130.0,0.02827273]
[1727099249418,0.001,63134.0,63130.0,0.02827273]
[1727099249609,0.001,63134.0,63133.0,0.079209]
[1727099249807,0.0037,63150.0,63148.0,0.07919]
[1727099250114,0.0037,63165.0,63149.0,0.439989]
[1727099250312,0.0043,63173.0,63164.0,0.38537273]
[1727099250620,0.3,63171.0,63170.0,0.3608]
[1727099250820,0.3,63171.0,63165.0,0.0727]
[1727099251010,0.3,63171.0,63165.0,0.10097273]
[1727099251823,0.3,63171.0,63170.0,0.3608]
[1727099252020,0.301,63171.0,63170.0,0.40307273]
[1727099252215,0.301,63171.0,63170.0,0.04227273]
[1727099252921,0.301,63171.0,63170.0,0.02827273]
[1727099253123,0.001,63171.0,63170.0,0.38907273]
[1727099253520,0.001,63171.0,63170.0,0.39507273]
[1727099253817,0.301,63171.0,63170.0,0.39507273]
[1727099254326,0.001,63171.0,63170.0,0.39507273]
[1727099254518,0.3608,63190.0,63170.0,0.39507273]
[1727099254519,0.3,63183.0,63170.0,0.39507273]
[1727099254709,0.3,63188.0,63179.0,0.3608]
[1727099254918,0.3,63188.0,63185.0,0.3608]
[1727099255307,0.379141,63188.0,63185.0,0.3608]
[1727099255608,0.00237514,63193.0,63185.0,0.38907273]
[1727099255813,0.3,63200.0,63192.0,0.3608]
[1727099256021,0.3608,63203.0,63192.0,0.3608]
[1727099256022,0.3,63194.0,63192.0,0.3608]
[1727099256317,0.379134,63194.0,63192.0,0.38907273]
[1727099257316,0.379134,63194.0,63192.0,0.3658]
[1727099257512,0.379134,63194.0,63192.0,0.005]
[1727099257912,0.379134,63194.0,63192.0,0.025]
[1727099258422,0.47472,63193.0,63192.0,0.024]
[1727099258920,1.07472,63193.0,63192.0,0.02]
[1727099259123,1.232988,63193.0,63192.0,0.02]
[1727099259614,1.232988,63193.0,63192.0,0.009]
[1727099259826,1.232988,63193.0,63179.0,0.3608]
[1727099259827,0.07115,63180.0,63179.0,0.3608]
[1727099260117,0.37115,63180.0,63179.0,0.3608]
[1727099260911,0.3,63180.0,63179.0,0.3608]
[1727099261118,0.3,63180.0,63179.0,0.444952]
[1727099261422,0.37915,63180.0,63179.0,0.3658]
[1727099261620,0.07915,63180.0,63179.0,0.3658]